[Event "*** Titled Tuesday Blitz"]
[Site "Chess.com"]
[Date "2020.11.03"]
[Round "6"]
[White "BegmuratovKh2010"]
[Black "ShcufNaiRolf"]
[Result "0-1"]
[WhiteElo "2449"]
[BlackElo "2357"]
[TimeControl "180+1"]
[EndTime "11:12:39 PST"]
[Termination "ShcufNaiRolf won by checkmate"]

1. d4 {[%clk 0:03:00.9]} 1... d5 {[%clk 0:02:59.5]} 2. Nf3 {[%clk 0:03:00.1]}
2... Nf6 {[%clk 0:02:59.4]} 3. c4 {[%clk 0:02:59.7]} 3... c6 {[%clk 0:02:59.2]}
4. e3 {[%clk 0:02:59.2]} 4... e6 {[%clk 0:02:58.5]} 5. Nc3 {[%clk 0:02:58.8]}
5... Nbd7 {[%clk 0:02:56.4]} 6. Bd2 {[%clk 0:02:57.9]} 6... Bd6 {[%clk 0:02:55]}
7. Qc2 {[%clk 0:02:53.1]} 7... O-O {[%clk 0:02:53.6]} 8. Bd3 {[%clk 0:02:51.3]}
8... dxc4 {[%clk 0:02:53.4]} 9. Bxc4 {[%clk 0:02:52.2]} 9... b5 {[%clk
0:02:53.7]} 10. Bd3 {[%clk 0:02:51.4]} 10... Bb7 {[%clk 0:02:51.8]} 11. O-O
{[%clk 0:02:42.7]} 11... Rc8 {[%clk 0:02:40.7]} 12. Ne4 {[%clk 0:02:26.3]} 12...
Nxe4 {[%clk 0:02:12.1]} 13. Bxe4 {[%clk 0:02:27.2]} 13... Nf6 {[%clk 0:02:09.9]}
14. b4 {[%clk 0:02:14.8]} 14... Nxe4 {[%clk 0:01:47.9]} 15. Qxe4 {[%clk
0:02:15.7]} 15... Qe7 {[%clk 0:01:48.3]} 16. Qb1 {[%clk 0:02:04.9]} 16... e5
{[%clk 0:01:09.6]} 17. Bc3 {[%clk 0:01:40.1]} 17... e4 {[%clk 0:01:03.2]} 18.
Nd2 {[%clk 0:01:38.6]} 18... f5 {[%clk 0:00:59.7]} 19. a4 {[%clk 0:01:35.2]}
19... a6 {[%clk 0:00:58.5]} 20. Nb3 {[%clk 0:01:32.7]} 20... Rc7 {[%clk
0:00:27.6]} 21. Nc5 {[%clk 0:01:27.1]} 21... Bc8 {[%clk 0:00:27.8]} 22. g3
{[%clk 0:01:19]} 22... h5 {[%clk 0:00:19.5]} 23. axb5 {[%clk 0:01:13.7]} 23...
axb5 {[%clk 0:00:14.8]} 24. Qb3+ {[%clk 0:00:49.3]} 24... Kh7 {[%clk 0:00:14.7]}
25. Na6 {[%clk 0:00:44.8]} 25... Ra7 {[%clk 0:00:14.1]} 26. Nc5 {[%clk
0:00:44.2]} 26... Rc7 {[%clk 0:00:14.3]} 27. f3 {[%clk 0:00:40.4]} 27... exf3
{[%clk 0:00:11.1]} 28. Rxf3 {[%clk 0:00:41.3]} 28... h4 {[%clk 0:00:11]} 29. Kf2
{[%clk 0:00:38.3]} 29... Rf6 {[%clk 0:00:11.1]} 30. Qc2 {[%clk 0:00:30.7]} 30...
Rh6 {[%clk 0:00:07.5]} 31. Kg2 {[%clk 0:00:28.4]} 31... hxg3 {[%clk 0:00:07]}
32. hxg3 {[%clk 0:00:29.3]} 32... Qg5 {[%clk 0:00:07.2]} 33. Rh1 {[%clk
0:00:25.6]} 33... Rxh1 {[%clk 0:00:07.1]} 34. Kxh1 {[%clk 0:00:26.5]} 34... Bxg3
{[%clk 0:00:07.5]} 35. Qg2 {[%clk 0:00:21.7]} 35... Qh4+ {[%clk 0:00:07.1]} 36.
Kg1 {[%clk 0:00:21.4]} 36... f4 {[%clk 0:00:04.5]} 37. exf4 {[%clk 0:00:20.8]}
37... Bxf4 {[%clk 0:00:05.1]} 38. Nd3 {[%clk 0:00:18.9]} 38... Bh6 {[%clk
0:00:05.1]} 39. d5 {[%clk 0:00:17.7]} 39... Ra7 {[%clk 0:00:05.2]} 40. Bd4
{[%clk 0:00:16.1]} 40... Ra2 {[%clk 0:00:04.2]} 41. Qxa2 {[%clk 0:00:14.9]}
41... Qxd4+ {[%clk 0:00:04.4]} 42. Qf2 {[%clk 0:00:13.6]} 42... Qxd5 {[%clk
0:00:05.3]} 43. Nf4 {[%clk 0:00:12.2]} 43... Qf5 {[%clk 0:00:04.6]} 44. Ng2
{[%clk 0:00:11.2]} 44... Qg4 {[%clk 0:00:05.5]} 45. Rg3 {[%clk 0:00:10.4]} 45...
Qxb4 {[%clk 0:00:05.2]} 46. Qc2+ {[%clk 0:00:09.1]} 46... Kh8 {[%clk 0:00:04.3]}
47. Qxc6 {[%clk 0:00:09.2]} 47... Qb1+ {[%clk 0:00:04.9]} 48. Kh2 {[%clk
0:00:08.7]} 48... Bf5 {[%clk 0:00:05.8]} 49. Qe8+ {[%clk 0:00:08.3]} 49... Kh7
{[%clk 0:00:06.2]} 50. Qh5 {[%clk 0:00:08.1]} 50... Be4 {[%clk 0:00:06.5]} 51.
Qg4 {[%clk 0:00:07.2]} 51... Qc2 {[%clk 0:00:07]} 52. Qe6 {[%clk 0:00:04.1]}
52... Bf5 {[%clk 0:00:07.3]} 53. Qe5 {[%clk 0:00:03.6]} 53... Qe4 {[%clk
0:00:06.1]} 54. Qxe4 {[%clk 0:00:03]} 54... Bxe4 {[%clk 0:00:07]} 55. Kh3 {[%clk
0:00:02.8]} 55... Bc6 {[%clk 0:00:06.9]} 56. Rd3 {[%clk 0:00:02.4]} 56... Be4
{[%clk 0:00:06.5]} 57. Rd1 {[%clk 0:00:03.3]} 57... b4 {[%clk 0:00:06.2]} 58.
Ra1 {[%clk 0:00:04.2]} 58... Bd2 {[%clk 0:00:06]} 59. Ne1 {[%clk 0:00:05.1]}
59... b3 {[%clk 0:00:05.2]} 60. Ra4 {[%clk 0:00:04.2]} 60... b2 {[%clk
0:00:05.4]} 61. Rxe4 {[%clk 0:00:05.1]} 61... b1=Q {[%clk 0:00:05.7]} 62. Rh4+
{[%clk 0:00:05.1]} 62... Bh6 {[%clk 0:00:03.8]} 63. Nf3 {[%clk 0:00:06]} 63...
Qb7 {[%clk 0:00:04]} 64. Kg4 {[%clk 0:00:05.6]} 64... Qc8+ {[%clk 0:00:04.9]}
65. Kg3 {[%clk 0:00:05.6]} 65... Kg6 {[%clk 0:00:05.7]} 66. Rg4+ {[%clk
0:00:05.4]} 66... Kf7 {[%clk 0:00:05.7]} 67. Ne5+ {[%clk 0:00:04.9]} 67... Kg8
{[%clk 0:00:05.5]} 68. Nf3 {[%clk 0:00:04.8]} 68... Qb8+ {[%clk 0:00:06]} 69.
Kh3 {[%clk 0:00:04.1]} 69... Qb3 {[%clk 0:00:06.9]} 70. Kg3 {[%clk 0:00:03.7]}
70... g6 {[%clk 0:00:06.2]} 71. Rxg6+ {[%clk 0:00:02.7]} 71... Kh7 {[%clk
0:00:07.1]} 72. Rg4 {[%clk 0:00:03.6]} 72... Qb8+ {[%clk 0:00:06.9]} 73. Kg2
{[%clk 0:00:03.2]} 73... Qd6 {[%clk 0:00:07.5]} 74. Rg3 {[%clk 0:00:02]} 74...
Qf6 {[%clk 0:00:07.6]} 75. Rh3 {[%clk 0:00:02.9]} 75... Kg6 {[%clk 0:00:07.9]}
76. Kg3 {[%clk 0:00:03.8]} 76... Kf7 {[%clk 0:00:08.2]} 77. Nh4 {[%clk
0:00:04.5]} 77... Bf4+ {[%clk 0:00:08.1]} 78. Kg2 {[%clk 0:00:04.9]} 78... Bg5
{[%clk 0:00:08.4]} 79. Nf3 {[%clk 0:00:05.5]} 79... Bf4 {[%clk 0:00:08.5]} 80.
Rh4 {[%clk 0:00:05]} 80... Qb2+ {[%clk 0:00:08.7]} 81. Kh3 {[%clk 0:00:02]}
81... Bd6 {[%clk 0:00:08.9]} 82. Kg4 {[%clk 0:00:02.9]} 82... Ke7 {[%clk
0:00:09]} 83. Rh7+ {[%clk 0:00:03.5]} 83... Ke6 {[%clk 0:00:09.3]} 84. Rh4
{[%clk 0:00:04.4]} 84... Kd5 {[%clk 0:00:09.4]} 85. Rh6 {[%clk 0:00:05.3]} 85...
Qb4+ {[%clk 0:00:08.7]} 86. Kh3 {[%clk 0:00:04]} 86... Qf4 {[%clk 0:00:09.6]}
87. Rh5+ {[%clk 0:00:04.6]} 87... Kc6 {[%clk 0:00:08.9]} 88. Nh4 {[%clk
0:00:05.5]} 88... Qg3# {[%clk 0:00:08.8]} 0-1

[Event "*** Titled Tuesday Blitz"]
[Site "Chess.com"]
[Date "2020.11.03"]
[Round "6"]
[White "Sebastian"]
[Black "obliviate12"]
[Result "1-0"]
[WhiteElo "2903"]
[BlackElo "2716"]
[TimeControl "180+1"]
[EndTime "11:12:46 PST"]
[Termination "Sebastian won by resignation"]

1. c4 {[%clk 0:03:00.9]} 1... e6 {[%clk 0:02:55.4]} 2. g3 {[%clk 0:03:00.8]}
2... d5 {[%clk 0:02:54.7]} 3. Bg2 {[%clk 0:03:01.4]} 3... Nf6 {[%clk 0:02:53.5]}
4. Nf3 {[%clk 0:03:01.7]} 4... Be7 {[%clk 0:02:52]} 5. O-O {[%clk 0:03:01]} 5...
O-O {[%clk 0:02:52.6]} 6. d4 {[%clk 0:03:01.2]} 6... dxc4 {[%clk 0:02:53.1]} 7.
Qa4 {[%clk 0:03:01.2]} 7... a6 {[%clk 0:02:48.2]} 8. Qxc4 {[%clk 0:03:01.6]}
8... b5 {[%clk 0:02:46.5]} 9. Qc2 {[%clk 0:03:02]} 9... Bb7 {[%clk 0:02:47.2]}
10. Bd2 {[%clk 0:03:02.6]} 10... Bd6 {[%clk 0:02:46.4]} 11. Nh4 {[%clk
0:03:00.5]} 11... Bxg2 {[%clk 0:02:26.1]} 12. Kxg2 {[%clk 0:03:01.4]} 12... Nbd7
{[%clk 0:02:26.5]} 13. e4 {[%clk 0:02:52.4]} 13... Be7 {[%clk 0:02:07.6]} 14.
Ba5 {[%clk 0:02:51.1]} 14... Qc8 {[%clk 0:02:04.7]} 15. Qc6 {[%clk 0:02:33.8]}
15... Ra7 {[%clk 0:01:41.6]} 16. Nd2 {[%clk 0:02:04.4]} 16... Nb8 {[%clk
0:01:22.5]} 17. Qc2 {[%clk 0:02:04.7]} 17... c5 {[%clk 0:01:17.2]} 18. dxc5
{[%clk 0:02:04]} 18... Qxc5 {[%clk 0:01:08.3]} 19. Qxc5 {[%clk 0:02:02.9]} 19...
Bxc5 {[%clk 0:01:09.2]} 20. Rac1 {[%clk 0:02:00.8]} 20... Be7 {[%clk 0:00:54.5]}
21. Nhf3 {[%clk 0:01:48.8]} 21... h6 {[%clk 0:00:52.1]} 22. Rc2 {[%clk
0:01:39.6]} 22... Bd8 {[%clk 0:00:51.3]} 23. Bb4 {[%clk 0:01:33.4]} 23... Be7
{[%clk 0:00:51.3]} 24. Bxe7 {[%clk 0:01:25.7]} 24... Rxe7 {[%clk 0:00:52.2]} 25.
Rfc1 {[%clk 0:01:25.9]} 25... Rd8 {[%clk 0:00:51.1]} 26. Ne5 {[%clk 0:01:23.4]}
26... Nfd7 {[%clk 0:00:42.5]} 27. Ndf3 {[%clk 0:01:10.2]} 27... Nf6 {[%clk
0:00:34.1]} 28. Nd2 {[%clk 0:00:54.3]} 28... Nfd7 {[%clk 0:00:32.4]} 29. Nd3
{[%clk 0:00:42.1]} 29... Nb6 {[%clk 0:00:22.5]} 30. Nc5 {[%clk 0:00:39.3]} 30...
f6 {[%clk 0:00:18.4]} 31. Nf3 {[%clk 0:00:32.7]} 31... Kf7 {[%clk 0:00:18.9]}
32. e5 {[%clk 0:00:25.5]} 32... Nc4 {[%clk 0:00:15.7]} 33. exf6 {[%clk
0:00:19.1]} 33... gxf6 {[%clk 0:00:16.6]} 34. b3 {[%clk 0:00:19.4]} 34... Nb6
{[%clk 0:00:16.7]} 35. a4 {[%clk 0:00:17.5]} 35... Nd5 {[%clk 0:00:17.3]} 36.
axb5 {[%clk 0:00:17.2]} 36... axb5 {[%clk 0:00:18.2]} 37. Ne4 {[%clk 0:00:15.4]}
37... b4 {[%clk 0:00:17.1]} 38. Rc5 {[%clk 0:00:14.3]} 38... Nd7 {[%clk
0:00:17]} 39. Rc6 {[%clk 0:00:14.4]} 39... Nf8 {[%clk 0:00:16.8]} 40. Nd6+
{[%clk 0:00:14.1]} 40... Kg6 {[%clk 0:00:15.7]} 41. Re1 {[%clk 0:00:12.9]} 41...
Kg7 {[%clk 0:00:13.2]} 42. Nc4 {[%clk 0:00:10.2]} 42... Red7 {[%clk 0:00:13.1]}
43. Nd4 {[%clk 0:00:06.7]} 43... Kf7 {[%clk 0:00:11.2]} 44. Nxe6 {[%clk
0:00:06.4]} 44... Nxe6 {[%clk 0:00:11.5]} 45. Rcxe6 {[%clk 0:00:06.7]} 45... Rc7
{[%clk 0:00:10.4]} 46. Ra6 {[%clk 0:00:06.4]} 46... Rdd7 {[%clk 0:00:10.3]} 47.
Re4 {[%clk 0:00:06.4]} 47... Kg6 {[%clk 0:00:10.4]} 48. Rg4+ {[%clk 0:00:06]}
48... Kf7 {[%clk 0:00:10.7]} 49. Rh4 {[%clk 0:00:06.2]} 49... Kg7 {[%clk
0:00:10.3]} 50. Rd4 {[%clk 0:00:05.9]} 50... Ne7 {[%clk 0:00:07.5]} 51. Rxd7
{[%clk 0:00:05.5]} 51... Rxd7 {[%clk 0:00:08.4]} 52. Rb6 {[%clk 0:00:04.4]}
52... Nd5 {[%clk 0:00:08.2]} 53. Rb5 {[%clk 0:00:05]} 53... Kf7 {[%clk
0:00:07.8]} 54. Kf3 {[%clk 0:00:05.1]} 54... Ke6 {[%clk 0:00:08.1]} 55. h4
{[%clk 0:00:05]} 55... h5 {[%clk 0:00:07.7]} 56. Ne3 {[%clk 0:00:05.1]} 56...
Nxe3 {[%clk 0:00:06.9]} 57. Kxe3 {[%clk 0:00:06]} 57... Rc7 {[%clk 0:00:06.4]}
58. Rxb4 {[%clk 0:00:05.9]} 58... Rc2 {[%clk 0:00:07.3]} 59. Rb5 {[%clk
0:00:05.5]} 59... f5 {[%clk 0:00:07.7]} 60. Rb6+ {[%clk 0:00:05.2]} 60... Ke5
{[%clk 0:00:08.6]} 61. Kf3 {[%clk 0:00:04.3]} 61... Rc3+ {[%clk 0:00:08.6]} 62.
Kg2 {[%clk 0:00:04.4]} 62... Rc2 {[%clk 0:00:09.5]} 63. Rb5+ {[%clk 0:00:04.1]}
63... Ke4 {[%clk 0:00:09.8]} 64. Rb4+ {[%clk 0:00:04.7]} 64... Ke5 {[%clk
0:00:10.1]} 65. Rb6 {[%clk 0:00:04.7]} 65... Rb2 {[%clk 0:00:10.5]} 66. Rh6
{[%clk 0:00:03.9]} 66... Ke4 {[%clk 0:00:09.4]} 67. Rxh5 {[%clk 0:00:03.3]}
67... f4 {[%clk 0:00:10.3]} 68. Rh6 {[%clk 0:00:03.3]} 68... f3+ {[%clk
0:00:10.8]} 69. Kg1 {[%clk 0:00:03.2]} 69... Rb1+ {[%clk 0:00:11.2]} 70. Kh2
{[%clk 0:00:03.8]} 70... Rf1 {[%clk 0:00:11.5]} 71. Re6+ {[%clk 0:00:03.8]}
71... Kf5 {[%clk 0:00:11.5]} 72. Re8 {[%clk 0:00:04]} 72... Rxf2+ {[%clk
0:00:11.5]} 73. Kh3 {[%clk 0:00:04.6]} 73... Rb2 {[%clk 0:00:11.6]} 74. Rf8+
{[%clk 0:00:04.9]} 74... Ke4 {[%clk 0:00:12]} 75. Kg4 {[%clk 0:00:05.1]} 75...
f2 {[%clk 0:00:11.7]} 76. h5 {[%clk 0:00:05.6]} 76... Ke3 {[%clk 0:00:12.2]} 77.
h6 {[%clk 0:00:05.6]} 77... Rxb3 {[%clk 0:00:13.1]} 78. h7 {[%clk 0:00:05.7]}
78... Rb4+ {[%clk 0:00:13.6]} 79. Kh3 {[%clk 0:00:06.1]} 79... Rb1 {[%clk
0:00:13.6]} 80. h8=Q {[%clk 0:00:05.4]} 80... Rh1+ {[%clk 0:00:14]} 81. Kg2
{[%clk 0:00:06]} 81... f1=Q+ {[%clk 0:00:11.5]} 82. Rxf1 {[%clk 0:00:06.6]}
82... Rxh8 {[%clk 0:00:11.7]} 83. g4 {[%clk 0:00:07.3]} 83... Ke4 {[%clk
0:00:10.4]} 84. Kg3 {[%clk 0:00:07.6]} 84... Rg8 {[%clk 0:00:11]} 85. Kh4 {[%clk
0:00:06.6]} 85... Rh8+ {[%clk 0:00:10.1]} 86. Kg5 {[%clk 0:00:07.2]} 86... Rg8+
{[%clk 0:00:10.7]} 87. Kh5 {[%clk 0:00:07.6]} 87... Rh8+ {[%clk 0:00:11.2]} 88.
Kg5 {[%clk 0:00:07.8]} 88... Rg8+ {[%clk 0:00:12.1]} 89. Kh4 {[%clk 0:00:08.2]}
89... Rh8+ {[%clk 0:00:12.5]} 90. Kg3 {[%clk 0:00:08.8]} 90... Rg8 {[%clk
0:00:13.4]} 91. Rf5 {[%clk 0:00:06.5]} 91... Rh8 {[%clk 0:00:11.4]} 92. Ra5
{[%clk 0:00:05.3]} 92... Rg8 {[%clk 0:00:11.8]} 93. g5 {[%clk 0:00:05.4]} 93...
Re8 {[%clk 0:00:10.2]} 94. Kg4 {[%clk 0:00:05.7]} 94... Rc8 {[%clk 0:00:10.6]}
95. g6 {[%clk 0:00:05.5]} 95... Rc1 {[%clk 0:00:11.5]} 96. Kg5 {[%clk
0:00:05.7]} 96... Rg1+ {[%clk 0:00:11.6]} 97. Kh6 {[%clk 0:00:05.9]} 1-0

[Event "*** Titled Tuesday Blitz"]
[Site "Chess.com"]
[Date "2020.11.03"]
[Round "6"]
[White "Fy_Rakotomaharo"]
[Black "Pilopa"]
[Result "1/2-1/2"]
[WhiteElo "2623"]
[BlackElo "2483"]
[TimeControl "180+1"]
[EndTime "11:13:20 PST"]
[Termination "Game drawn by stalemate"]

1. g3 {[%clk 0:03:00.9]} 1... d5 {[%clk 0:02:54]} 2. Nf3 {[%clk 0:03:00.8]} 2...
Nf6 {[%clk 0:02:53.4]} 3. Bg2 {[%clk 0:03:00.9]} 3... g6 {[%clk 0:02:54]} 4. O-O
{[%clk 0:02:55.7]} 4... Bg7 {[%clk 0:02:54.1]} 5. d4 {[%clk 0:02:55.7]} 5... O-O
{[%clk 0:02:53.9]} 6. b3 {[%clk 0:02:54.6]} 6... Bf5 {[%clk 0:02:52.9]} 7. Bb2
{[%clk 0:02:53.7]} 7... c6 {[%clk 0:02:52.2]} 8. Nbd2 {[%clk 0:02:52.7]} 8... a5
{[%clk 0:02:49.9]} 9. c4 {[%clk 0:02:48.6]} 9... a4 {[%clk 0:02:48.3]} 10. Nh4
{[%clk 0:02:47.5]} 10... Be6 {[%clk 0:02:38.6]} 11. e4 {[%clk 0:02:44.6]} 11...
dxe4 {[%clk 0:02:29]} 12. Nxe4 {[%clk 0:02:44.6]} 12... Nxe4 {[%clk 0:02:25.1]}
13. Bxe4 {[%clk 0:02:45.5]} 13... a3 {[%clk 0:02:08.8]} 14. Bc3 {[%clk
0:02:42.4]} 14... c5 {[%clk 0:01:56.6]} 15. Bxb7 {[%clk 0:02:37.5]} 15... Ra7
{[%clk 0:01:54]} 16. Bg2 {[%clk 0:02:27.1]} 16... cxd4 {[%clk 0:01:53.5]} 17.
Bd2 {[%clk 0:02:20.4]} 17... Qb6 {[%clk 0:01:42.4]} 18. Rc1 {[%clk 0:02:16.7]}
18... Na6 {[%clk 0:01:41.1]} 19. Nf3 {[%clk 0:02:09.9]} 19... Rc8 {[%clk
0:01:26.7]} 20. Ng5 {[%clk 0:01:56]} 20... Bf5 {[%clk 0:01:24.7]} 21. Ne4 {[%clk
0:01:54.6]} 21... Rac7 {[%clk 0:01:18.4]} 22. Qe2 {[%clk 0:01:38.3]} 22... Nb4
{[%clk 0:01:08.3]} 23. c5 {[%clk 0:01:29.8]} 23... Qb8 {[%clk 0:00:59.1]} 24.
Bxb4 {[%clk 0:01:00.8]} 24... Qxb4 {[%clk 0:01:00]} 25. Rc4 {[%clk 0:01:01.3]}
25... Qb5 {[%clk 0:00:54.4]} 26. Qd3 {[%clk 0:00:43.1]} 26... Rxc5 {[%clk
0:00:41.9]} 27. Rfc1 {[%clk 0:00:23]} 27... Rxc4 {[%clk 0:00:40.4]} 28. bxc4
{[%clk 0:00:23.5]} 28... Qb2 {[%clk 0:00:40.1]} 29. Rc2 {[%clk 0:00:15.6]} 29...
Qb1+ {[%clk 0:00:40.2]} 30. Bf1 {[%clk 0:00:16.1]} 30... Bh3 {[%clk 0:00:36.9]}
31. Nd2 {[%clk 0:00:16.4]} 31... Qd1 {[%clk 0:00:32.2]} 32. Nb3 {[%clk
0:00:06.1]} 32... Qxf1+ {[%clk 0:00:25.4]} 33. Qxf1 {[%clk 0:00:05.8]} 33...
Bxf1 {[%clk 0:00:26.3]} 34. Kxf1 {[%clk 0:00:06.7]} 34... d3 {[%clk 0:00:26.7]}
35. Rd2 {[%clk 0:00:02.3]} 35... Rxc4 {[%clk 0:00:26.9]} 36. Rxd3 {[%clk
0:00:02.9]} 36... Bf6 {[%clk 0:00:24.9]} 37. Rd8+ {[%clk 0:00:02.8]} 37... Kg7
{[%clk 0:00:24.8]} 38. Ra8 {[%clk 0:00:03.7]} 38... Bb2 {[%clk 0:00:22.1]} 39.
Ke2 {[%clk 0:00:04.1]} 39... Rc2+ {[%clk 0:00:21.4]} 40. Kf3 {[%clk 0:00:04.6]}
40... h5 {[%clk 0:00:20]} 41. h4 {[%clk 0:00:04.8]} 41... e6 {[%clk 0:00:18.7]}
42. Ra7 {[%clk 0:00:05.2]} 42... Rc3+ {[%clk 0:00:18.7]} 43. Kg2 {[%clk
0:00:04.8]} 43... Rc2 {[%clk 0:00:19.1]} 44. Ra6 {[%clk 0:00:04.6]} 44... Kf6
{[%clk 0:00:18.6]} 45. Ra4 {[%clk 0:00:04.7]} 45... Re2 {[%clk 0:00:17.4]} 46.
Kf3 {[%clk 0:00:04.6]} 46... Rc2 {[%clk 0:00:17]} 47. Rf4+ {[%clk 0:00:05.3]}
47... Ke7 {[%clk 0:00:16.5]} 48. Ra4 {[%clk 0:00:06.2]} 48... Rc7 {[%clk
0:00:16.8]} 49. Ra6 {[%clk 0:00:04.5]} 49... Rd7 {[%clk 0:00:14.5]} 50. Ke4
{[%clk 0:00:04.8]} 50... Rd1 {[%clk 0:00:12.9]} 51. Nc5 {[%clk 0:00:03.7]} 51...
Kf6 {[%clk 0:00:12.3]} 52. Ra7 {[%clk 0:00:04.1]} 52... Ra1 {[%clk 0:00:11.4]}
53. Nd7+ {[%clk 0:00:03.8]} 53... Ke7 {[%clk 0:00:08.3]} 54. Ne5+ {[%clk
0:00:03.6]} 54... Kd6 {[%clk 0:00:08.6]} 55. Nxf7+ {[%clk 0:00:03.7]} 55... Kc5
{[%clk 0:00:09.2]} 56. Nd8 {[%clk 0:00:03.6]} 56... Rxa2 {[%clk 0:00:08.7]} 57.
Nxe6+ {[%clk 0:00:04.1]} 57... Kc4 {[%clk 0:00:08.1]} 58. Nf4 {[%clk 0:00:05]}
58... Ra1 {[%clk 0:00:06.3]} 59. Kf3 {[%clk 0:00:05.4]} 59... Rd1 {[%clk
0:00:05.1]} 60. Nxg6 {[%clk 0:00:05.4]} 60... Kb3 {[%clk 0:00:04.6]} 61. Rb7+
{[%clk 0:00:05.9]} 61... Kc2 {[%clk 0:00:03.9]} 62. Ra7 {[%clk 0:00:06.3]} 62...
Kb1 {[%clk 0:00:04.2]} 63. Nf4 {[%clk 0:00:07]} 63... a2 {[%clk 0:00:05.1]} 64.
Nxh5 {[%clk 0:00:07.2]} 64... a1=Q {[%clk 0:00:05.1]} 65. Rxa1+ {[%clk
0:00:07.8]} 65... Bxa1 {[%clk 0:00:06]} 66. Kg4 {[%clk 0:00:08.3]} 66... Kc2
{[%clk 0:00:06.5]} 67. f4 {[%clk 0:00:08.7]} 67... Rf1 {[%clk 0:00:06.7]} 68.
Kf5 {[%clk 0:00:08.8]} 68... Kd3 {[%clk 0:00:07]} 69. g4 {[%clk 0:00:09.2]}
69... Bc3 {[%clk 0:00:06.6]} 70. g5 {[%clk 0:00:08.5]} 70... Kc4 {[%clk
0:00:06.7]} 71. g6 {[%clk 0:00:08.2]} 71... Rg1 {[%clk 0:00:06.7]} 72. Nf6
{[%clk 0:00:07.7]} 72... Kb5 {[%clk 0:00:03.9]} 73. h5 {[%clk 0:00:07.4]} 73...
Kc6 {[%clk 0:00:04.1]} 74. h6 {[%clk 0:00:07.7]} 74... Kd6 {[%clk 0:00:04.4]}
75. g7 {[%clk 0:00:08.2]} 75... Ke7 {[%clk 0:00:03.2]} 76. g8=Q {[%clk
0:00:08.2]} 76... Rxg8 {[%clk 0:00:02.8]} 77. Nxg8+ {[%clk 0:00:09.1]} 77... Kf7
{[%clk 0:00:03.7]} 78. h7 {[%clk 0:00:09]} 78... Kg7 {[%clk 0:00:03.4]} 79. Ne7
{[%clk 0:00:07.2]} 79... Kxh7 {[%clk 0:00:03.6]} 80. Ke6 {[%clk 0:00:07.6]}
80... Kg7 {[%clk 0:00:03.6]} 81. Nd5 {[%clk 0:00:08.5]} 81... Ba1 {[%clk
0:00:03.7]} 82. f5 {[%clk 0:00:09.2]} 82... Kf8 {[%clk 0:00:04.2]} 83. Nf4
{[%clk 0:00:09.8]} 83... Bb2 {[%clk 0:00:03.9]} 84. Nh5 {[%clk 0:00:10.7]} 84...
Ba1 {[%clk 0:00:02.8]} 85. Kd5 {[%clk 0:00:11.2]} 85... Bb2 {[%clk 0:00:03.7]}
86. Ke4 {[%clk 0:00:12.1]} 86... Ba1 {[%clk 0:00:04.1]} 87. Kf4 {[%clk 0:00:13]}
87... Bb2 {[%clk 0:00:04.6]} 88. Kg5 {[%clk 0:00:13.9]} 88... Ba1 {[%clk
0:00:05.1]} 89. Kg6 {[%clk 0:00:14.8]} 89... Bb2 {[%clk 0:00:05.6]} 90. Nf6
{[%clk 0:00:15.7]} 90... Ba1 {[%clk 0:00:06.1]} 91. Ne4 {[%clk 0:00:16.6]} 91...
Bb2 {[%clk 0:00:06.1]} 92. Nc5 {[%clk 0:00:17.5]} 92... Ba1 {[%clk 0:00:06.5]}
93. Ne6+ {[%clk 0:00:18.4]} 93... Ke8 {[%clk 0:00:05.4]} 94. Nc7+ {[%clk
0:00:19.3]} 94... Kf8 {[%clk 0:00:05.1]} 95. Nd5 {[%clk 0:00:20.2]} 95... Bb2
{[%clk 0:00:04.6]} 96. Nb4 {[%clk 0:00:20.6]} 96... Ba1 {[%clk 0:00:04.9]} 97.
Nd3 {[%clk 0:00:21.5]} 97... Bc3 {[%clk 0:00:05]} 98. Nf4 {[%clk 0:00:21.9]}
98... Ba1 {[%clk 0:00:04.6]} 99. Ne6+ {[%clk 0:00:20.6]} 99... Ke8 {[%clk
0:00:04.9]} 100. Nc5 {[%clk 0:00:21.5]} 100... Kf8 {[%clk 0:00:05.2]} 101. Nd3
{[%clk 0:00:22.3]} 101... Bc3 {[%clk 0:00:05.1]} 102. Kg5 {[%clk 0:00:21.3]}
102... Ba1 {[%clk 0:00:04.7]} 103. Kf4 {[%clk 0:00:22.2]} 103... Bc3 {[%clk
0:00:05.2]} 104. Ke4 {[%clk 0:00:23.1]} 104... Bf6 {[%clk 0:00:05.6]} 105. Kd5
{[%clk 0:00:24]} 105... Ba1 {[%clk 0:00:06.3]} 106. Kc4 {[%clk 0:00:24.9]}
106... Bh8 {[%clk 0:00:06.2]} 107. Kb3 {[%clk 0:00:25.8]} 107... Ba1 {[%clk
0:00:06.7]} 108. Nf4 {[%clk 0:00:26.7]} 108... Bf6 {[%clk 0:00:05.7]} 109. Ng6+
{[%clk 0:00:26.6]} 109... Kf7 {[%clk 0:00:05.8]} 110. Kc4 {[%clk 0:00:27.5]}
110... Bd8 {[%clk 0:00:05.3]} 111. Kd5 {[%clk 0:00:28]} 111... Kf6 {[%clk
0:00:05.4]} 112. Ke4 {[%clk 0:00:28.9]} 112... Kf7 {[%clk 0:00:06.3]} 113. Ne5+
{[%clk 0:00:29.3]} 113... Kf8 {[%clk 0:00:06.6]} 114. Nc6 {[%clk 0:00:30.2]}
114... Bf6 {[%clk 0:00:06.5]} 115. Ne5 {[%clk 0:00:30.2]} 115... Bxe5 {[%clk
0:00:06]} 116. Kxe5 {[%clk 0:00:31.1]} 116... Ke7 {[%clk 0:00:06.5]} 117. f6+
{[%clk 0:00:31.8]} 117... Kf7 {[%clk 0:00:06.9]} 118. Kf5 {[%clk 0:00:32.7]}
118... Kf8 {[%clk 0:00:07.1]} 119. Kg6 {[%clk 0:00:33.6]} 119... Kg8 {[%clk
0:00:07.3]} 120. f7+ {[%clk 0:00:34.5]} 120... Kf8 {[%clk 0:00:07.4]} 121. Kf6
{[%clk 0:00:35.4]} 1/2-1/2

[Event "*** Titled Tuesday Blitz"]
[Site "Chess.com"]
[Date "2020.11.03"]
[Round "7"]
[White "Mimsychess"]
[Black "Quiet_Desperation"]
[Result "1-0"]
[WhiteElo "2324"]
[BlackElo "1830"]
[TimeControl "180+1"]
[EndTime "11:16:47 PST"]
[Termination "Mimsychess won by resignation"]

1. e4 {[%clk 0:02:57.3]} 1... e6 {[%clk 0:03:00.3]} 2. d4 {[%clk 0:02:53.1]}
2... d5 {[%clk 0:03:00.4]} 3. Bd3 {[%clk 0:02:51.5]} 3... Nf6 {[%clk 0:02:58.2]}
4. e5 {[%clk 0:02:51.7]} 4... Nfd7 {[%clk 0:02:58.5]} 5. Nd2 {[%clk 0:02:43.7]}
5... c5 {[%clk 0:02:58]} 6. c3 {[%clk 0:02:44.1]} 6... Nc6 {[%clk 0:02:58.2]} 7.
Ndf3 {[%clk 0:02:44.5]} 7... Be7 {[%clk 0:02:52.3]} 8. Ne2 {[%clk 0:02:43.9]}
8... g5 {[%clk 0:02:35.7]} 9. h3 {[%clk 0:02:36.5]} 9... h5 {[%clk 0:02:27.4]}
10. Ng3 {[%clk 0:02:33.3]} 10... cxd4 {[%clk 0:02:20.9]} 11. cxd4 {[%clk
0:02:31.8]} 11... h4 {[%clk 0:02:12.4]} 12. Nf1 {[%clk 0:02:30.2]} 12... a6
{[%clk 0:01:55]} 13. Ne3 {[%clk 0:02:29.7]} 13... b5 {[%clk 0:01:52.9]} 14. Ng4
{[%clk 0:02:27.9]} 14... Bb7 {[%clk 0:01:49.1]} 15. Be3 {[%clk 0:02:24]} 15...
Rc8 {[%clk 0:01:43.9]} 16. Rc1 {[%clk 0:02:12.2]} 16... Nb6 {[%clk 0:01:42.9]}
17. b3 {[%clk 0:02:06]} 17... Ba3 {[%clk 0:01:42.3]} 18. Bxg5 {[%clk 0:01:56.6]}
1-0